[Event "*** Titled Tuesday Blitz"]
[Site "Chess.com"]
[Date "2020.10.27"]
[Round "6"]
[White "German_Bazeev"]
[Black "TheCavemanChesss"]
[Result "1/2-1/2"]
[WhiteElo "2759"]
[BlackElo "2523"]
[TimeControl "180+1"]
[EndTime "11:07:33 PDT"]
[Termination "Game drawn by repetition"]

1. d4 {[%clk 0:03:00.9]} 1... Nf6 {[%clk 0:02:58.9]} 2. Nf3 {[%clk 0:03:00.5]}
2... d5 {[%clk 0:02:58.5]} 3. c4 {[%clk 0:03:00.8]} 3... e6 {[%clk 0:02:58.5]}
4. g3 {[%clk 0:03:00.9]} 4... Be7 {[%clk 0:02:58.4]} 5. Bg2 {[%clk 0:03:00.8]}
5... O-O {[%clk 0:02:59]} 6. O-O {[%clk 0:03:01.5]} 6... dxc4 {[%clk 0:02:59.2]}
7. Qc2 {[%clk 0:03:02.1]} 7... a6 {[%clk 0:02:59.1]} 8. Rd1 {[%clk 0:03:02.7]}
8... b5 {[%clk 0:02:45.6]} 9. Ne5 {[%clk 0:03:00.3]} 9... Nd5 {[%clk 0:02:43.3]}
10. b3 {[%clk 0:03:00.9]} 10... cxb3 {[%clk 0:02:35.3]} 11. axb3 {[%clk
0:03:01.8]} 11... Bb7 {[%clk 0:02:32.9]} 12. Ba3 {[%clk 0:03:01.8]} 12... Bxa3
{[%clk 0:02:25.7]} 13. Nxa3 {[%clk 0:03:02.7]} 13... Nd7 {[%clk 0:02:17.5]} 14.
Nd3 {[%clk 0:03:02.3]} 14... Rc8 {[%clk 0:02:09.5]} 15. e4 {[%clk 0:03:00.6]}
15... N5f6 {[%clk 0:02:01.4]} 16. Qe2 {[%clk 0:02:19.9]} 16... Qe7 {[%clk
0:01:45.9]} 17. b4 {[%clk 0:02:18.7]} 17... Rfd8 {[%clk 0:01:36.9]} 18. Nc2
{[%clk 0:02:12.6]} 18... h6 {[%clk 0:01:15.5]} 19. h3 {[%clk 0:02:10]} 19... Ra8
{[%clk 0:01:06.4]} 20. f4 {[%clk 0:01:54.9]} 20... Ne8 {[%clk 0:00:48.8]} 21.
Qf2 {[%clk 0:00:59.5]} 21... Rab8 {[%clk 0:00:43.7]} 22. Re1 {[%clk 0:00:56.1]}
22... Nd6 {[%clk 0:00:40.9]} 23. d5 {[%clk 0:00:55.2]} 23... exd5 {[%clk
0:00:40.9]} 24. e5 {[%clk 0:00:55.5]} 24... Ne4 {[%clk 0:00:36.2]} 25. Qd4
{[%clk 0:00:43.4]} 25... Nxg3 {[%clk 0:00:31.7]} 26. Ne3 {[%clk 0:00:43.3]}
26... c6 {[%clk 0:00:16.7]} 27. f5 {[%clk 0:00:40.7]} 27... Qg5 {[%clk
0:00:15.5]} 28. h4 {[%clk 0:00:32.8]} 28... Nxf5 {[%clk 0:00:11.5]} 29. Nxf5
{[%clk 0:00:31.3]} 29... Qxf5 {[%clk 0:00:11.6]} 30. Rf1 {[%clk 0:00:32.2]}
30... Qg6 {[%clk 0:00:10.6]} 31. Kh2 {[%clk 0:00:25.8]} 31... Nf8 {[%clk
0:00:10.9]} 32. Nf4 {[%clk 0:00:23.4]} 32... Ne6 {[%clk 0:00:09.8]} 33. Qd2
{[%clk 0:00:08.2]} 33... Nxf4 {[%clk 0:00:09.5]} 34. Rxf4 {[%clk 0:00:08.7]}
34... Re8 {[%clk 0:00:09.8]} 35. Re1 {[%clk 0:00:08.3]} 35... Re7 {[%clk
0:00:09.9]} 36. Bh3 {[%clk 0:00:08.5]} 36... Rbe8 {[%clk 0:00:10.1]} 37. Rg1
{[%clk 0:00:08.7]} 37... Qh5 {[%clk 0:00:09.4]} 38. Rfg4 {[%clk 0:00:08.8]}
38... Qxe5+ {[%clk 0:00:09.3]} 39. Kh1 {[%clk 0:00:09.2]} 39... f5 {[%clk
0:00:09.5]} 40. Rg6 {[%clk 0:00:07.3]} 40... c5 {[%clk 0:00:09.4]} 41. Qxh6
{[%clk 0:00:07.3]} 41... d4+ {[%clk 0:00:07.8]} 42. Bg2 {[%clk 0:00:08]} 42...
Bxg2+ {[%clk 0:00:05.8]} 43. R6xg2 {[%clk 0:00:08.9]} 43... Qe4 {[%clk
0:00:04.8]} 44. Kh2 {[%clk 0:00:08.4]} 44... Qe5+ {[%clk 0:00:02.7]} 45. Kh1
{[%clk 0:00:08.4]} 45... Qe4 {[%clk 0:00:03]} 46. Kh2 {[%clk 0:00:08.3]} 46...
Qe5+ {[%clk 0:00:03.5]} 47. Kh1 {[%clk 0:00:08.1]} 1/2-1/2

[Event "*** Titled Tuesday Blitz"]
[Site "Chess.com"]
[Date "2020.10.27"]
[Round "6"]
[White "Ural_bogatyr"]
[Black "WuinaterJr"]
[Result "0-1"]
[WhiteElo "2355"]
[BlackElo "2517"]
[TimeControl "180+1"]
[EndTime "11:07:33 PDT"]
[Termination "WuinaterJr won by resignation"]

1. e4 {[%clk 0:02:52.7]} 1... c5 {[%clk 0:02:59.6]} 2. Nf3 {[%clk 0:02:52.8]}
2... d6 {[%clk 0:02:59.8]} 3. d4 {[%clk 0:02:52.8]} 3... cxd4 {[%clk 0:03:00.4]}
4. Qxd4 {[%clk 0:02:52.5]} 4... a6 {[%clk 0:03:00.2]} 5. Be3 {[%clk 0:02:51.5]}
5... Nc6 {[%clk 0:03:00.7]} 6. Qd2 {[%clk 0:02:49.8]} 6... Nf6 {[%clk
0:02:59.9]} 7. Nc3 {[%clk 0:02:50.1]} 7... g6 {[%clk 0:02:56.8]} 8. O-O-O {[%clk
0:02:50.1]} 8... Bg7 {[%clk 0:02:57.2]} 9. e5 {[%clk 0:02:50.3]} 9... dxe5
{[%clk 0:02:52.6]} 10. Qxd8+ {[%clk 0:02:51.2]} 10... Nxd8 {[%clk 0:02:52.8]}
11. Nxe5 {[%clk 0:02:51.8]} 11... O-O {[%clk 0:02:52.6]} 12. Be2 {[%clk
0:02:51.6]} 12... h5 {[%clk 0:02:22]} 13. h3 {[%clk 0:02:49.4]} 13... Nh7 {[%clk
0:02:18.7]} 14. Nc4 {[%clk 0:02:47.3]} 14... b5 {[%clk 0:02:10]} 15. Nb6 {[%clk
0:02:41.3]} 15... Rb8 {[%clk 0:02:10.1]} 16. Ncd5 {[%clk 0:02:37.8]} 16... Nc6
{[%clk 0:02:06.5]} 17. Nxc8 {[%clk 0:01:41.8]} 17... Rbxc8 {[%clk 0:02:05.2]}
18. Kb1 {[%clk 0:01:19.4]} 18... e6 {[%clk 0:02:04.4]} 19. Nb6 {[%clk
0:01:12.3]} 19... Rc7 {[%clk 0:01:53.5]} 20. Bc5 {[%clk 0:01:10.6]} 20... Re8
{[%clk 0:01:47.3]} 21. Bf3 {[%clk 0:00:56.6]} 21... Ne5 {[%clk 0:01:30]} 22. Bd6
{[%clk 0:00:56.8]} 22... Ra7 {[%clk 0:01:30]} 23. Bxe5 {[%clk 0:00:49.4]} 23...
Bxe5 {[%clk 0:01:29.2]} 24. Bc6 {[%clk 0:00:50.3]} 24... Ree7 {[%clk 0:01:02.3]}
25. Nc8 {[%clk 0:00:50.3]} 25... Nf6 {[%clk 0:00:58.5]} 26. Nxe7+ {[%clk
0:00:43.2]} 26... Rxe7 {[%clk 0:00:57.8]} 27. Rd8+ {[%clk 0:00:43.6]} 27... Kg7
{[%clk 0:00:57.8]} 28. Ra8 {[%clk 0:00:40.4]} 28... Bd4 {[%clk 0:00:56.4]} 29.
f3 {[%clk 0:00:37]} 29... Ba7 {[%clk 0:00:56]} 30. Rd1 {[%clk 0:00:32.6]} 30...
Rc7 {[%clk 0:00:55.8]} 31. c3 {[%clk 0:00:25.4]} 31... h4 {[%clk 0:00:50.6]} 32.
Be4 {[%clk 0:00:20.3]} 32... g5 {[%clk 0:00:48.4]} 33. Bc2 {[%clk 0:00:19.2]}
33... Nd5 {[%clk 0:00:45.3]} 34. Be4 {[%clk 0:00:19]} 34... Ne3 {[%clk
0:00:44.2]} 35. Rdd8 {[%clk 0:00:19.6]} 35... Nxg2 {[%clk 0:00:41.7]} 36. Rdc8
{[%clk 0:00:17.9]} 36... Rd7 {[%clk 0:00:39.3]} 37. Rd8 {[%clk 0:00:14.4]} 37...
Rc7 {[%clk 0:00:39.3]} 38. Rac8 {[%clk 0:00:12.2]} 38... Re7 {[%clk 0:00:38.8]}
39. Rg8+ {[%clk 0:00:10.4]} 39... Kf6 {[%clk 0:00:38.8]} 40. Rh8 {[%clk
0:00:08.5]} 40... Nf4 {[%clk 0:00:37.1]} 41. Rcg8 {[%clk 0:00:08.8]} 41... Nxh3
{[%clk 0:00:34.6]} 42. f4 {[%clk 0:00:08.9]} 42... Nxf4 {[%clk 0:00:29.2]} 43.
Bf3 {[%clk 0:00:07.4]} 43... Kf5 {[%clk 0:00:25.1]} 44. Bd1 {[%clk 0:00:04.4]}
44... e5 {[%clk 0:00:24.9]} 45. Kc2 {[%clk 0:00:03.7]} 45... e4 {[%clk
0:00:25.2]} 46. Bh5 {[%clk 0:00:01.9]} 46... e3 {[%clk 0:00:23.4]} 47. Kd1
{[%clk 0:00:02.2]} 47... e2+ {[%clk 0:00:23.1]} 48. Bxe2 {[%clk 0:00:01.9]}
48... Nxe2 {[%clk 0:00:21.1]} 49. Rf8 {[%clk 0:00:02.8]} 49... Nf4 {[%clk
0:00:20.1]} 0-1

[Event "*** Titled Tuesday Blitz"]
[Site "Chess.com"]
[Date "2020.10.27"]
[Round "6"]
[White "DrMamaliga"]
[Black "Klavdia_Nik"]
[Result "1-0"]
[WhiteElo "2349"]
[BlackElo "2065"]
[TimeControl "180+1"]
[EndTime "11:07:35 PDT"]
[Termination "DrMamaliga won on time"]

1. c4 {[%clk 0:03:00.9]} 1... Nf6 {[%clk 0:02:57.1]} 2. Nf3 {[%clk 0:03:00.6]}
2... b6 {[%clk 0:02:52.2]} 3. g3 {[%clk 0:03:00.1]} 3... Bb7 {[%clk 0:02:52.2]}
4. Bg2 {[%clk 0:03:01]} 4... g6 {[%clk 0:02:52.3]} 5. O-O {[%clk 0:03:00.8]}
5... Bg7 {[%clk 0:02:52.3]} 6. Nc3 {[%clk 0:03:01.7]} 6... c5 {[%clk 0:02:50.3]}
7. b3 {[%clk 0:03:02]} 7... d5 {[%clk 0:02:48.2]} 8. cxd5 {[%clk 0:02:59.5]}
8... Nxd5 {[%clk 0:02:48.8]} 9. Bb2 {[%clk 0:02:59.9]} 9... O-O {[%clk
0:02:46.6]} 10. e3 {[%clk 0:02:54.9]} 10... Nb4 {[%clk 0:02:39.3]} 11. d4 {[%clk
0:02:51]} 11... cxd4 {[%clk 0:02:37.3]} 12. exd4 {[%clk 0:02:48.8]} 12... e6
{[%clk 0:02:29.1]} 13. a3 {[%clk 0:02:41.2]} 13... Nd5 {[%clk 0:02:25.8]} 14.
Qd2 {[%clk 0:02:38.1]} 14... Nxc3 {[%clk 0:02:23.1]} 15. Bxc3 {[%clk 0:02:39]}
15... Bd5 {[%clk 0:02:23]} 16. Ne5 {[%clk 0:02:33.6]} 16... Bxg2 {[%clk
0:02:18.9]} 17. Kxg2 {[%clk 0:02:34.5]} 17... Qd5+ {[%clk 0:02:18.7]} 18. f3
{[%clk 0:02:23.9]} 18... Qxb3 {[%clk 0:02:18.2]} 19. Bb4 {[%clk 0:02:20.8]}
19... Rd8 {[%clk 0:02:07.1]} 20. Qf4 {[%clk 0:02:20]} 20... Qc2+ {[%clk
0:01:35.4]} 21. Rf2 {[%clk 0:02:07.7]} 21... Qf5 {[%clk 0:01:35.7]} 22. Qxf5
{[%clk 0:02:01]} 22... gxf5 {[%clk 0:01:35.2]} 23. Rc1 {[%clk 0:02:01.9]} 23...
Na6 {[%clk 0:01:22.8]} 24. Nc6 {[%clk 0:01:27.1]} 24... Rd7 {[%clk 0:01:18.2]}
25. Ne7+ {[%clk 0:01:22.9]} 25... Kh8 {[%clk 0:01:18.1]} 26. Rfc2 {[%clk
0:01:22.3]} 26... Bxd4 {[%clk 0:01:09.1]} 27. Rc8+ {[%clk 0:00:49.9]} 27... Rxc8
{[%clk 0:01:07.9]} 28. Rxc8+ {[%clk 0:00:50.8]} 28... Kg7 {[%clk 0:01:07.3]} 29.
Nc6 {[%clk 0:00:46.2]} 29... Bf6 {[%clk 0:00:51]} 30. Bf8+ {[%clk 0:00:43]}
30... Kg6 {[%clk 0:00:48.8]} 31. h4 {[%clk 0:00:39.8]} 31... h5 {[%clk
0:00:47.7]} 32. Kh3 {[%clk 0:00:31.8]} 32... Nc5 {[%clk 0:00:40]} 33. Nb4 {[%clk
0:00:20.7]} 33... a5 {[%clk 0:00:38.6]} 34. Nc2 {[%clk 0:00:20.3]} 34... Nd3
{[%clk 0:00:22.6]} 35. Ne3 {[%clk 0:00:18.9]} 35... e5 {[%clk 0:00:20.8]} 36.
Rc6 {[%clk 0:00:17.1]} 36... f4 {[%clk 0:00:12.5]} 37. Nc4 {[%clk 0:00:17.1]}
37... fxg3 {[%clk 0:00:09.5]} 38. Kxg3 {[%clk 0:00:18]} 38... Kf5 {[%clk
0:00:09.6]} 39. Ne3+ {[%clk 0:00:18.1]} 39... Kg6 {[%clk 0:00:08.2]} 40. a4
{[%clk 0:00:16.6]} 40... Nf4 {[%clk 0:00:07.6]} 41. Nc4 {[%clk 0:00:16.1]} 41...
Rd4 {[%clk 0:00:05.5]} 42. Nxe5+ {[%clk 0:00:15.9]} 42... Kf5 {[%clk 0:00:03.9]}
43. Nxf7 {[%clk 0:00:13.1]} 43... Rd2 {[%clk 0:00:03.1]} 44. Nh6+ {[%clk
0:00:13.1]} 44... Kg6 {[%clk 0:00:01.5]} 45. Kxf4 {[%clk 0:00:13.5]} 1-0

[Event "*** Titled Tuesday Blitz"]
[Site "Chess.com"]
[Date "2020.10.27"]
[Round "6"]
[White "BigAl"]
[Black "Fortitudine"]
[Result "1-0"]
[WhiteElo "2474"]
[BlackElo "2295"]
[TimeControl "180+1"]
[EndTime "11:07:42 PDT"]
[Termination "BigAl won by resignation"]

1. e4 {[%clk 0:03:00.9]} 1... c5 {[%clk 0:02:59.1]} 2. c3 {[%clk 0:02:59]} 2...
Nf6 {[%clk 0:02:58.6]} 3. e5 {[%clk 0:02:58.9]} 3... Nd5 {[%clk 0:02:59]} 4. d4
{[%clk 0:02:59.8]} 4... cxd4 {[%clk 0:02:59.5]} 5. Nf3 {[%clk 0:03:00.5]} 5...
Nc6 {[%clk 0:02:58.5]} 6. Bc4 {[%clk 0:03:01]} 6... Nb6 {[%clk 0:02:57.5]} 7.
Bb3 {[%clk 0:03:01.7]} 7... d5 {[%clk 0:02:55.2]} 8. exd6 {[%clk 0:03:01.8]}
8... Qxd6 {[%clk 0:02:54.2]} 9. Na3 {[%clk 0:03:02.4]} 9... Be6 {[%clk
0:02:25.7]} 10. O-O {[%clk 0:02:56.9]} 10... Bxb3 {[%clk 0:02:22.4]} 11. Qxb3
{[%clk 0:02:56.9]} 11... e6 {[%clk 0:02:15.9]} 12. Nb5 {[%clk 0:02:48]} 12...
Qd7 {[%clk 0:02:12.6]} 13. Rd1 {[%clk 0:02:48]} 13... Na5 {[%clk 0:01:38.7]} 14.
Qc2 {[%clk 0:02:12.6]} 14... Qxb5 {[%clk 0:01:37.5]} 15. Nxd4 {[%clk 0:02:12.9]}
15... Qc4 {[%clk 0:01:19.6]} 16. b3 {[%clk 0:02:04]} 16... Qc7 {[%clk
0:01:13.7]} 17. Qe4 {[%clk 0:01:43.4]} 17... Be7 {[%clk 0:00:59.9]} 18. Nb5
{[%clk 0:01:40.9]} 18... Qc8 {[%clk 0:00:56.2]} 19. Bg5 {[%clk 0:01:29.6]} 19...
f6 {[%clk 0:00:47.3]} 20. Be3 {[%clk 0:00:50.5]} 20... O-O {[%clk 0:00:44.1]}
21. Rd3 {[%clk 0:00:49.5]} 21... Nc6 {[%clk 0:00:30.5]} 22. Bxb6 {[%clk
0:00:45.9]} 22... axb6 {[%clk 0:00:30]} 23. Rh3 {[%clk 0:00:43]} 23... f5 {[%clk
0:00:24.2]} 24. Qf3 {[%clk 0:00:42.6]} 24... Bf6 {[%clk 0:00:20.2]} 25. Re1
{[%clk 0:00:41]} 25... Qe8 {[%clk 0:00:16]} 26. Nc7 {[%clk 0:00:39.7]} 26... Qg6
{[%clk 0:00:15.8]} 27. Nxa8 {[%clk 0:00:40.3]} 27... Rxa8 {[%clk 0:00:16.3]} 28.
Rxe6 {[%clk 0:00:39.6]} 28... Rxa2 {[%clk 0:00:16.3]} 29. Qd1 {[%clk 0:00:38]}
29... Qf7 {[%clk 0:00:15.1]} 30. Re1 {[%clk 0:00:35.7]} 30... g6 {[%clk
0:00:13.7]} 31. Rd3 {[%clk 0:00:33]} 31... Ne7 {[%clk 0:00:11.6]} 32. c4 {[%clk
0:00:32.6]} 32... Ra1 {[%clk 0:00:10.3]} 33. Qe2 {[%clk 0:00:31.7]} 33... Rxe1+
{[%clk 0:00:09.8]} 34. Qxe1 {[%clk 0:00:32.6]} 34... Kg7 {[%clk 0:00:10.5]} 35.
g3 {[%clk 0:00:31]} 35... Nc6 {[%clk 0:00:10.8]} 36. Qe3 {[%clk 0:00:28.9]}
36... Ne5 {[%clk 0:00:11.1]} 37. Rd5 {[%clk 0:00:28.1]} 37... Nc6 {[%clk
0:00:09.9]} 38. Qxb6 {[%clk 0:00:27.5]} 38... Ne7 {[%clk 0:00:09.1]} 39. Rd7
{[%clk 0:00:26.7]} 39... g5 {[%clk 0:00:07.7]} 40. Qxb7 {[%clk 0:00:24.3]} 40...
Qe6 {[%clk 0:00:08.2]} 41. Rd1 {[%clk 0:00:22.1]} 41... Kg6 {[%clk 0:00:08.5]}
42. Qd7 {[%clk 0:00:21.2]} 42... Qe4 {[%clk 0:00:07.1]} 43. Qd3 {[%clk
0:00:20.7]} 43... Qe5 {[%clk 0:00:07]} 44. b4 {[%clk 0:00:20]} 44... Nc6 {[%clk
0:00:07.1]} 45. b5 {[%clk 0:00:16.1]} 45... Nd4 {[%clk 0:00:07.3]} 46. g4 {[%clk
0:00:14.2]} 46... Nxb5 {[%clk 0:00:05.1]} 47. cxb5 {[%clk 0:00:12.8]} 47... h5
{[%clk 0:00:04.2]} 48. Qxf5+ {[%clk 0:00:13.2]} 48... Qxf5 {[%clk 0:00:03.9]}
49. gxf5+ {[%clk 0:00:14.1]} 49... Kxf5 {[%clk 0:00:04.8]} 50. b6 {[%clk
0:00:14.6]} 50... Be5 {[%clk 0:00:04.7]} 51. Rd5 {[%clk 0:00:14.8]} 51... Ke6
{[%clk 0:00:04.1]} 52. Rxe5+ {[%clk 0:00:15.7]} 1-0

[Event "*** Titled Tuesday Blitz"]
[Site "Chess.com"]
[Date "2020.10.27"]
[Round "6"]
[White "keepitcoming"]
[Black "nitpicker"]
[Result "1-0"]
[WhiteElo "2544"]
[BlackElo "2260"]
[TimeControl "180+1"]
[EndTime "11:07:42 PDT"]
[Termination "keepitcoming won by resignation"]

1. d4 {[%clk 0:03:00.9]} 1... Nf6 {[%clk 0:02:59.4]} 2. c4 {[%clk 0:02:59.9]}
2... e6 {[%clk 0:02:59.5]} 3. Nc3 {[%clk 0:02:58.7]} 3... Bb4 {[%clk 0:02:59.1]}
4. e3 {[%clk 0:02:55.9]} 4... d5 {[%clk 0:02:58.1]} 5. Ne2 {[%clk 0:02:43.5]}
5... O-O {[%clk 0:02:52.8]} 6. a3 {[%clk 0:02:42.7]} 6... Bd6 {[%clk 0:02:52.8]}
7. c5 {[%clk 0:02:41.1]} 7... Be7 {[%clk 0:02:52.8]} 8. b4 {[%clk 0:02:42]} 8...
c6 {[%clk 0:02:52.4]} 9. Ng3 {[%clk 0:02:34.7]} 9... Nbd7 {[%clk 0:02:46.8]} 10.
Bd3 {[%clk 0:02:27.9]} 10... e5 {[%clk 0:02:43.9]} 11. O-O {[%clk 0:02:25.3]}
11... e4 {[%clk 0:02:40.8]} 12. Be2 {[%clk 0:02:14.5]} 12... Re8 {[%clk
0:02:40.9]} 13. b5 {[%clk 0:02:03]} 13... Nf8 {[%clk 0:02:38.2]} 14. a4 {[%clk
0:02:02.1]} 14... g6 {[%clk 0:02:28.8]} 15. h3 {[%clk 0:01:56.6]} 15... h5
{[%clk 0:02:28.7]} 16. Re1 {[%clk 0:01:51.9]} 16... N8h7 {[%clk 0:02:28]} 17. a5
{[%clk 0:01:43.2]} 17... Bd7 {[%clk 0:02:22.1]} 18. b6 {[%clk 0:01:35.3]} 18...
a6 {[%clk 0:02:20.6]} 19. Bf1 {[%clk 0:01:29.8]} 19... Qc8 {[%clk 0:02:14.7]}
20. Nce2 {[%clk 0:01:25.8]} 20... g5 {[%clk 0:02:07.7]} 21. Nc3 {[%clk
0:01:17.8]} 21... Kh8 {[%clk 0:02:07.5]} 22. Nxh5 {[%clk 0:01:14.7]} 22... Rg8
{[%clk 0:02:07.5]} 23. Ng3 {[%clk 0:01:12]} 23... Ne8 {[%clk 0:02:00]} 24. Be2
{[%clk 0:01:06.1]} 24... f5 {[%clk 0:01:59.2]} 25. Qc2 {[%clk 0:00:57.2]} 25...
Ng7 {[%clk 0:01:58.2]} 26. Qd2 {[%clk 0:00:55.3]} 26... Qf8 {[%clk 0:01:57.5]}
27. Rb1 {[%clk 0:00:52.3]} 27... Qf6 {[%clk 0:01:56.9]} 28. Bd1 {[%clk
0:00:45.2]} 28... Raf8 {[%clk 0:01:55.8]} 29. Bb3 {[%clk 0:00:41.1]} 29... Qg6
{[%clk 0:01:53.2]} 30. Nxd5 {[%clk 0:00:37]} 30... cxd5 {[%clk 0:01:51.6]} 31.
Bxd5 {[%clk 0:00:37.9]} 31... Bc8 {[%clk 0:01:42.1]} 32. c6 {[%clk 0:00:32.1]}
32... bxc6 {[%clk 0:01:39.5]} 33. Bxg8 {[%clk 0:00:32]} 33... Kxg8 {[%clk
0:01:27.8]} 34. b7 {[%clk 0:00:32.9]} 34... Bxb7 {[%clk 0:01:27.2]} 35. Rxb7
{[%clk 0:00:33.1]} 35... Qf6 {[%clk 0:01:24]} 36. Qa2+ {[%clk 0:00:31.8]} 36...
Kh8 {[%clk 0:01:23.3]} 37. Ba3 {[%clk 0:00:31.7]} 37... Bxa3 {[%clk 0:01:14.1]}
38. Qxa3 {[%clk 0:00:32.6]} 38... f4 {[%clk 0:01:14.4]} 39. Nxe4 {[%clk
0:00:30]} 39... Qe6 {[%clk 0:01:10.3]} 40. Qd6 {[%clk 0:00:28.1]} 40... Qxe4
{[%clk 0:01:08.8]} 41. Qe5 {[%clk 0:00:19.3]} 41... Qxe5 {[%clk 0:01:03.4]} 42.
dxe5 {[%clk 0:00:20.2]} 42... Ne6 {[%clk 0:01:00.8]} 43. exf4 {[%clk 0:00:19.2]}
43... gxf4 {[%clk 0:00:59]} 44. Rb6 {[%clk 0:00:19.3]} 44... Rc8 {[%clk
0:00:49.3]} 45. Rxa6 {[%clk 0:00:19.2]} 45... Nhf8 {[%clk 0:00:49.6]} 46. Rb6
{[%clk 0:00:17.9]} 46... c5 {[%clk 0:00:49.6]} 47. a6 {[%clk 0:00:17.7]} 47...
c4 {[%clk 0:00:49.4]} 48. a7 {[%clk 0:00:17.5]} 48... Ra8 {[%clk 0:00:49]} 49.
Ra1 {[%clk 0:00:16.5]} 49... Nc7 {[%clk 0:00:43.8]} 50. Rb8 {[%clk 0:00:16]}
50... Kg7 {[%clk 0:00:39.5]} 51. Rxa8 {[%clk 0:00:15.9]} 51... Nxa8 {[%clk
0:00:39.3]} 52. Rb1 {[%clk 0:00:15.6]} 52... Nc7 {[%clk 0:00:34.4]} 53. Rb8
{[%clk 0:00:14.5]} 53... c3 {[%clk 0:00:32.8]} 54. a8=Q {[%clk 0:00:14.4]} 54...
Nxa8 {[%clk 0:00:32.4]} 55. Rxa8 {[%clk 0:00:15.3]} 55... Ne6 {[%clk 0:00:31.6]}
56. Rc8 {[%clk 0:00:15.2]} 56... Nd4 {[%clk 0:00:31.7]} 57. Kf1 {[%clk
0:00:13.6]} 57... c2 {[%clk 0:00:31.7]} 58. Ke1 {[%clk 0:00:12.7]} 58... Kf7
{[%clk 0:00:31.7]} 59. Kd2 {[%clk 0:00:12.4]} 59... Ke6 {[%clk 0:00:32.2]} 60.
Rc4 {[%clk 0:00:12.1]} 60... Kxe5 {[%clk 0:00:32]} 61. h4 {[%clk 0:00:12.5]}
61... c1=Q+ {[%clk 0:00:30.2]} 62. Kxc1 {[%clk 0:00:12.1]} 62... Ne2+ {[%clk
0:00:29.1]} 63. Kd2 {[%clk 0:00:11.3]} 63... Nd4 {[%clk 0:00:28.3]} 64. Rxd4
{[%clk 0:00:11]} 64... Kxd4 {[%clk 0:00:27.8]} 65. Ke2 {[%clk 0:00:11]} 65...
Ke4 {[%clk 0:00:27.9]} 66. h5 {[%clk 0:00:11.1]} 66... Kf5 {[%clk 0:00:28.1]}
67. Kf3 {[%clk 0:00:11.4]} 1-0

[Event "*** Titled Tuesday Blitz"]
[Site "Chess.com"]
[Date "2020.10.27"]
[Round "6"]
[White "Fh2411"]
[Black "nubair1198"]
[Result "1/2-1/2"]
[WhiteElo "2525"]
[BlackElo "2821"]
[TimeControl "180+1"]
[EndTime "11:07:43 PDT"]
[Termination "Game drawn - insufficient material"]

1. d4 {[%clk 0:02:21.5]} 1... d5 {[%clk 0:03:00.2]} 2. Nf3 {[%clk 0:02:22.1]}
2... Nf6 {[%clk 0:02:59.7]} 3. Bf4 {[%clk 0:02:21.4]} 3... c5 {[%clk 0:02:59.2]}
4. e3 {[%clk 0:02:21.7]} 4... Nc6 {[%clk 0:02:59.2]} 5. Nbd2 {[%clk 0:02:22.2]}
5... Bg4 {[%clk 0:02:55.6]} 6. c3 {[%clk 0:02:21.4]} 6... e6 {[%clk 0:02:55.5]}
7. Qb3 {[%clk 0:02:20.6]} 7... Qc8 {[%clk 0:02:51.9]} 8. Bb5 {[%clk 0:02:14.8]}
8... Nd7 {[%clk 0:02:50.5]} 9. h3 {[%clk 0:02:06.1]} 9... Bh5 {[%clk 0:02:48.6]}
10. O-O {[%clk 0:02:01.4]} 10... Be7 {[%clk 0:02:48.2]} 11. Rac1 {[%clk
0:01:51.7]} 11... a6 {[%clk 0:02:31.3]} 12. Bxc6 {[%clk 0:01:47.1]} 12... Qxc6
{[%clk 0:02:32.2]} 13. c4 {[%clk 0:01:47.5]} 13... dxc4 {[%clk 0:02:32.3]} 14.
Qxc4 {[%clk 0:01:39.8]} 14... O-O {[%clk 0:02:25.9]} 15. dxc5 {[%clk 0:01:35]}
15... Qxc5 {[%clk 0:02:24.7]} 16. Qd3 {[%clk 0:01:21]} 16... Qb5 {[%clk
0:02:10.1]} 17. Qxb5 {[%clk 0:01:20.6]} 17... axb5 {[%clk 0:02:11]} 18. Rc7
{[%clk 0:01:20.5]} 18... Rfd8 {[%clk 0:02:07.9]} 19. Rxb7 {[%clk 0:01:19.5]}
19... Rxa2 {[%clk 0:02:05.6]} 20. Rxb5 {[%clk 0:01:19.3]} 20... Nc5 {[%clk
0:01:56.3]} 21. b4 {[%clk 0:01:07.4]} 21... Bxf3 {[%clk 0:01:55.9]} 22. Nxf3
{[%clk 0:01:01.6]} 22... Nd3 {[%clk 0:01:56.3]} 23. Bc7 {[%clk 0:00:59.8]} 23...
Rc8 {[%clk 0:01:52.6]} 24. Ba5 {[%clk 0:01:00.1]} 24... g6 {[%clk 0:01:42.1]}
25. Rb7 {[%clk 0:00:54.3]} 25... Bxb4 {[%clk 0:01:24.3]} 26. Bxb4 {[%clk
0:00:48.6]} 26... Rb2 {[%clk 0:01:24.8]} 27. Rd1 {[%clk 0:00:42.2]} 27... Rxb4
{[%clk 0:01:23.1]} 28. Rxb4 {[%clk 0:00:40.8]} 28... Nxb4 {[%clk 0:01:24]} 29.
g4 {[%clk 0:00:34.8]} 29... Rc7 {[%clk 0:01:19.4]} 30. g5 {[%clk 0:00:34.1]}
30... Kg7 {[%clk 0:01:18.7]} 31. h4 {[%clk 0:00:34.4]} 31... h6 {[%clk
0:01:18.8]} 32. Kg2 {[%clk 0:00:34.4]} 32... Nd5 {[%clk 0:01:18.1]} 33. Kg3
{[%clk 0:00:34.2]} 33... Rc4 {[%clk 0:01:17.2]} 34. Ra1 {[%clk 0:00:31.5]} 34...
Nc3 {[%clk 0:01:15.6]} 35. Ra7 {[%clk 0:00:26.3]} 35... Ne4+ {[%clk 0:01:15.5]}
36. Kg2 {[%clk 0:00:16.8]} 36... Rc2 {[%clk 0:01:15.5]} 37. gxh6+ {[%clk
0:00:13.7]} 37... Kxh6 {[%clk 0:01:16.4]} 38. Rxf7 {[%clk 0:00:11.6]} 38...
Rxf2+ {[%clk 0:01:15.1]} 39. Kh3 {[%clk 0:00:12.1]} 39... Re2 {[%clk 0:01:06.1]}
40. Kg4 {[%clk 0:00:11.6]} 40... Rxe3 {[%clk 0:00:55.1]} 41. Kf4 {[%clk
0:00:05.3]} 41... Re1 {[%clk 0:00:52.9]} 42. Re7 {[%clk 0:00:05.6]} 42... Re2
{[%clk 0:00:47.5]} 43. Ng5 {[%clk 0:00:04.1]} 43... Nf6 {[%clk 0:00:39.5]} 44.
Rf7 {[%clk 0:00:03.1]} 44... Rf2+ {[%clk 0:00:35]} 45. Ke5 {[%clk 0:00:03.4]}
45... Ng4+ {[%clk 0:00:18.3]} 46. Kxe6 {[%clk 0:00:04.3]} 46... Rxf7 {[%clk
0:00:15.2]} 47. Kxf7 {[%clk 0:00:04.6]} 47... Ne5+ {[%clk 0:00:14.5]} 48. Kf6
{[%clk 0:00:04.3]} 48... Ng4+ {[%clk 0:00:14.7]} 49. Kf7 {[%clk 0:00:04.6]}
49... Kh5 {[%clk 0:00:15.6]} 50. Ne6 {[%clk 0:00:04.2]} 50... Ne5+ {[%clk
0:00:14.6]} 51. Kf6 {[%clk 0:00:04.7]} 51... Nd7+ {[%clk 0:00:14.8]} 52. Kg7
{[%clk 0:00:04.3]} 52... Ne5 {[%clk 0:00:14.4]} 53. Nf4+ {[%clk 0:00:04.5]}
53... Kxh4 {[%clk 0:00:14.6]} 54. Nxg6+ {[%clk 0:00:05.4]} 1/2-1/2